fUST/lending_fUST_20251021
["ID","MTS","AMOUNT","RATE_DAILY","PERIOD"]
[391913830,1760980238859,-250.0,0.00028435,2]
[391913831,1760980238869,-1516.0,0.00028482,2]
[391913832,1760980238879,-402.9601108,0.000285,30]
[391913833,1760980238889,-744.82759725,0.00028535,5]
[391913834,1760980238898,-707.47428415,0.00028535,5]
[391913835,1760980238908,-217.0,0.00028537,2]
[391913836,1760980238917,-276.0,0.00028547,2]
[391913837,1760980238928,-324.0,0.00028569,7]
[391913838,1760980238937,-276.0,0.00028581,2]
[391913839,1760980238947,-307.44219897,0.00028586,5]
[391913840,1760980238956,-1613.4866708,0.00028586,5]
[391913841,1760980238965,-989.12601571,0.0002876,2]
[391913842,1760980238975,-4000.0,0.0002876,5]
[391913843,1760980238984,-2318.4149331,0.0002876,2]
[391913844,1760980238993,-250.31971598,0.0002876,2]
[391913845,1760980239002,-169.83253239,0.000288,7]
[391913846,1760980239012,-760.0,0.00028888,2]
[391913847,1760980239021,-2000.0,0.00028916,5]
[391913848,1760980239031,-377.84277341,0.00028959,2]
[391913849,1760980239041,-217.0,0.00028975,2]
[391913850,1760980239051,-217.0,0.00028987,2]
[391913851,1760980239059,-881.98862225,0.00029,2]
[391913852,1760980239069,-1169.01441972,0.00029,2]
[391913853,1760980239079,-502.44369659,0.00029,7]
[391913854,1760980239089,-3000.0,0.00029,4]
[391913855,1760980239099,-1224.64,0.00029,2]
[391913856,1760980239110,-153.0,0.00029036,2]
[391913857,1760980239120,-1236.12560662,0.0002908,2]
[391913858,1760980239130,-11594.1391806,0.0002909,2]
[391913859,1760980239140,-13973.4,0.000291,7]
[391913860,1760980239150,-217.0,0.00029124,2]
[391913861,1760980239160,-217.0,0.00029135,2]
[391913862,1760980239170,-217.0,0.00029141,2]
[391913863,1760980239180,-867.0,0.00029167,7]
[391913864,1760980239191,-156.0,0.00029178,33]
[391913865,1760980239201,-1516.0,0.00029213,7]
[391913866,1760980239210,-179.69451932,0.00029235,3]
[391913867,1760980239223,-276.0,0.00029243,2]
[391913868,1760980239233,-402.9601108,0.000294,30]
[391913869,1760980239243,-860.0,0.00029436,2]
[391913870,1760980239253,-2500.0,0.00029464,5]
[391913871,1760980239262,-276.0,0.00029492,2]
[391913872,1760980239271,-246.0,0.00029496,2]
[391913873,1760980239281,-217.0,0.00029535,2]
[391913874,1760980239290,-1236.12560662,0.0002954,2]
[391913875,1760980239300,-276.0,0.00029546,2]
[391913877,1760980239310,-23188.2783611,0.0002955,2]
[391913878,1760980239320,-1236.12560662,0.0002955,2]
[391913879,1760980239330,-5000.0,0.00029554,2]
[391913880,1760980239340,-217.0,0.00029555,2]
[391913881,1760980239349,-403.60478069,0.00029559,2]
[391913882,1760980239358,-19410.16217736,0.0002956,2]
[391913883,1760980239371,-11882.71967382,0.0002956,2]
[391913921,1760980240009,-3e-08,0.0002956,2]
[391913924,1760980240025,-15928.29753029,0.0002956,2]
[391913926,1760980240036,-24368.80584882,0.0002956,2]
[391913928,1760980240046,-250.0,0.00029573,5]
[391913930,1760980240055,-843.0,0.00029576,7]
[391913932,1760980240064,-2604.83,0.000296,2]
[391913934,1760980240074,-217.0,0.00029676,2]
[391913936,1760980240084,-558.16415118,0.000297,5]
[391914167,1760980246160,-5537.4915764,0.000297,5]
[391914168,1760980246172,-752.3883853,0.000297,5]
[391914169,1760980280245,200.0,0.00033741,120]
[391914180,1760980335873,638.50319715,0.00024068,2]
[391914181,1760980335896,10000.01,0.00024068,2]
[391914182,1760980335920,10000.01,0.00024068,2]
[391914183,1760980335942,10000.01,0.00024068,2]
[391914184,1760980335965,10000.01,0.00024068,2]
[391914185,1760980335988,10000.01,0.00024068,2]
[391914186,1760980336011,10000.01,0.00024068,2]
[391914187,1760980336033,10000.01,0.00024068,2]
[391914188,1760980336057,10000.01,0.00024068,2]
[391914189,1760980336081,10000.01,0.00024068,2]
[391914190,1760980343909,-256.30003275,0.00024068,2]
[391914191,1760980352675,-6811.12807105,0.00024068,2]
[391914192,1760980352720,-10000.01,0.00024068,2]
[391914193,1760980352780,-10000.01,0.00024068,2]
[391914194,1760980352804,-10000.01,0.00024068,2]
[391914195,1760980352863,-10000.01,0.00024068,2]
[391914196,1760980354550,-253.61485598,0.00024067,2]
[391914197,1760980354579,-201.95231439,0.00024067,2]
[391914198,1760980354647,-9088.87565926,0.00024068,2]
[391914199,1760980354684,-10000.01,0.00024068,2]
[391914200,1760980355083,-500.0,0.00024067,2]
[391914201,1760980355093,-407.68835049,0.00024067,2]
[391914202,1760980355103,-236.46855713,0.00024067,2]
[391914203,1760980355113,-8855.85309238,0.00024068,2]
[391914204,1760980355170,-601.03187522,0.00024067,2]
[391914205,1760980355277,-8797.94624956,0.00024068,2]
[391914206,1760980355295,-10000.01,0.00024068,2]
[391914207,1760980357571,-10000.01,0.00024068,2]
[391914208,1760980357680,-10000.01,0.00024068,2]
[391914209,1760980357878,-10000.01,0.00024068,2]
[391914210,1760980358001,-10000.01,0.00024068,2]
[391914211,1760980358135,-10000.01,0.00024068,2]
[391914212,1760980360328,-368.84436072,0.00024068,2]
[391914213,1760980360745,-10000.01,0.00024068,2]
[391914214,1760980360947,-10000.01,0.00024068,2]
[391914215,1760980361066,-10000.01,0.00024068,2]
[391914216,1760980361221,-10000.01,0.00024068,2]
[391914217,1760980361309,-10000.01,0.00024068,2]
[391914218,1760980362130,-524.21803242,0.00024068,2]
[391914219,1760980363671,-10000.01,0.00024068,2]
[391914220,1760980363809,-10000.01,0.00024068,2]
[391914221,1760980363961,-10000.01,0.00024068,2]
[391914222,1760980364063,-10000.01,0.00024068,2]
[391914223,1760980364092,-180.0,0.00024068,2]
[391914224,1760980364461,-10000.01,0.00024068,2]
[391914225,1760980366743,-235.085253,0.00024068,2]
[391914226,1760980369129,-364.19240879,0.00024068,2]
[391914227,1760980369813,-177.53039918,0.00024067,2]
[391914228,1760980369861,-9644.94920164,0.00024068,2]
[391914229,1760980369911,-10000.01,0.00024068,2]
[391914230,1760980370022,-10000.01,0.00024068,2]
[391914231,1760980370714,-174.82904481,0.00024068,2]
[391914232,1760980375721,-171.36217915,0.00024068,2]
[391914233,1760980376040,-3887.59321732,0.00024068,2]
[391914234,1760980402000,290.68,0.00020548,2]
[391914235,1760980402063,581.37,0.00021526,2]
[391914236,1760980402795,872.05,0.00022505,2]
[391914237,1760980403269,1162.73,0.00023483,2]
[391914238,1760980449667,-300.0,0.00024099,2]
[391914239,1760980449688,-57.80651499,0.000241,7]
[391914240,1760980493075,300.0,0.000235,2]
[391914241,1760980495097,253.69,0.00020506,2]
[391914242,1760980496544,507.37,0.00021482,2]
[391914243,1760980497004,761.06,0.00022459,2]
[391914244,1760980497727,1014.75,0.00023435,2]
[391914245,1760980507685,300.0,0.000235,2]
[391914246,1760980524742,300.0,0.000235,2]
[391914247,1760980534830,300.0,0.000235,2]
[391914248,1760980552161,300.0,0.000235,2]
[391914249,1760980554988,3056.31,0.00024075,2]
[391914250,1760980555013,1943.69,0.00024075,2]
[391914251,1760980570567,300.0,0.000235,2]
[391914252,1760980581368,200.0,0.00033723,120]
[391914253,1760980585417,300.0,0.000235,2]
[391914254,1760980595665,221.4,0.00020536,2]
[391914255,1760980596141,442.8,0.00021514,2]
[391914256,1760980597217,664.2,0.00022491,2]
[391914257,1760980597709,885.6,0.00023469,2]
[391914258,1760980629662,-243.57727224,0.00024099,2]
[391914259,1760980631666,-158.76952916,0.00024099,2]
[391914260,1760980633569,-272.6531986,0.00024099,2]
[391914261,1760980633599,-300.0,0.00024099,2]
[391914262,1760980633622,-55.64193995,0.000241,2]
[391914263,1760980636618,1416.3289871,0.00024068,2]
[391914273,1760980670722,1388.44041599,0.00024075,2]
[391914274,1760980688940,193.22,0.00020522,2]
[391914275,1760980689449,386.44,0.000215,2]
[391914276,1760980689964,579.66,0.00022477,2]
[391914277,1760980690452,772.88,0.00023454,2]
[391914278,1760980702598,505.35059691,0.00023193,2]
[391914279,1760980702620,160.64940309,0.00023193,2]
[391914280,1760980783183,168.63,0.00020531,2]
[391914281,1760980783681,337.26,0.00021509,2]
[391914282,1760980784507,505.89,0.00022487,2]
[391914283,1760980784997,674.52,0.00023464,2]
[391914284,1760980809647,-174.91964221,0.00024099,2]
[391914285,1760980809671,-30.45355261,0.00024099,2]
[391914286,1760980813844,-199.23471633,0.00024099,2]
[391914287,1760980845239,404.60791115,0.00024075,2]
[391914288,1760980873878,150.0,0.00020529,2]
[391914289,1760980874338,294.33,0.00021507,2]
[391914290,1760980875225,441.5,0.00022484,2]
[391914291,1760980875765,588.67,0.00023462,2]
[391914292,1760980910249,1069.092352,0.00030137,120]
[391914295,1760980927782,1388.17898,0.00033728,30]
[391914333,1760980961065,150.0,0.00020553,2]
[391914334,1760980961904,256.8,0.00021532,2]
[391914335,1760980962477,385.2,0.0002251,2]
[391914336,1760980962833,513.6,0.00023489,2]
[391914338,1760981004831,-169.35806005,0.00024099,2]
[391914339,1760981007012,-130.64193995,0.00024099,2]
[391914340,1760981007035,-81.57400897,0.00024099,2]
[391914341,1760981022725,4968.35268576,0.00024068,2]
[391914342,1760981022754,10000.01,0.00024068,2]
[391914343,1760981022779,10000.01,0.00024068,2]
[391914344,1760981022801,2352.34817654,0.00024068,2]
[391914345,1760981052131,150.0,0.00020504,2]
[391914346,1760981052608,223.57,0.00021481,2]
[391914347,1760981053104,335.35,0.00022457,2]
[391914348,1760981053572,447.14,0.00023434,2]
[391914350,1760981094644,-154.52866099,0.00024099,2]
[391914351,1760981107779,1050.0,0.00033732,30]
[391914358,1760981108322,26284.8105,0.00033732,30]
[391914407,1760981109656,-168.0,0.00024099,2]
[391914408,1760981110849,1050.0,0.00033732,30]
[391914409,1760981137045,300.0,0.000234,2]
[391914410,1760981142039,150.0,0.00020525,2]
[391914411,1760981144115,237.18,0.00021503,2]
[391914412,1760981145143,355.77,0.0002248,2]
[391914413,1760981145589,474.36,0.00023457,2]
[391914414,1760981152118,300.0,0.000234,2]
[391914415,1760981163100,248.33882899,0.00024075,2]
[391914416,1760981170550,300.0,0.000234,2]
[391914417,1760981180008,243.57727224,0.00024041,2]
[391914418,1760981191590,300.0,0.000234,2]
[391914419,1760981196826,300.0,0.000235,2]
[391914421,1760981209966,300.0,0.000234,2]
[391914422,1760981212982,1003.31,0.00033732,30]
[391914423,1760981213944,300.0,0.000235,2]
[391914425,1760981232849,150.0,0.00020497,2]
[391914426,1760981233340,213.83,0.00021473,2]
[391914427,1760981233826,320.75,0.00022449,2]
[391914428,1760981234278,427.67,0.00023425,2]
[391914429,1760981235554,1000.0,0.00033732,30]
[391914431,1760981241527,300.0,0.00033732,30]
[391914432,1760981242211,311.1,0.00033732,30]
[391914434,1760981264247,282.8441424,0.00033732,120]
[391914435,1760981292043,164.86482861,0.00033732,120]
[391914436,1760981292281,1570.12572223,0.00021,5]
[391914437,1760981292306,1309.85302513,0.00021,5]
[391914439,1760981299091,1256.52344412,0.00033732,60]
[391914440,1760981310113,285.73118044,0.00033732,30]
[391914442,1760981311279,1370.50258845,0.00033732,60]
[391914443,1760981311359,240.82074905,0.00033732,120]
[391914444,1760981312434,248.73182435,0.00033732,120]
[391914445,1760981314290,347.69540676,0.00033732,120]
[391914446,1760981314783,354.13260773,0.00033732,60]
[391914447,1760981316298,825.81774957,0.00033732,60]
[391914449,1760981316783,426.38353605,0.00033732,120]
[391914450,1760981317722,760.94013492,0.00033732,120]
[391914451,1760981318778,438.10236849,0.00033732,120]
[391914452,1760981318818,854.71676966,0.00033732,120]
[391914453,1760981318895,221.75048092,0.00033732,120]
[391914454,1760981319692,724.03639728,0.00033732,120]
[391914455,1760981320029,325.54882355,0.00033732,120]
[391914456,1760981320127,150.0,0.00020581,2]
[391914457,1760981320594,185.52,0.00021561,2]
[391914458,1760981321068,526.0181012,0.00033732,60]
[391914459,1760981321243,280.54417006,0.00033732,60]
[391914460,1760981321543,166.956919,0.00033732,120]
[391914461,1760981321654,278.28,0.00022541,2]
[391914462,1760981322094,371.04,0.00023522,2]
[391914463,1760981323895,433.40162381,0.00033732,120]
[391914467,1760981387099,2515.07697018,0.00023,2]
[391914468,1760981401583,150.0,0.00020665,2]
[391914469,1760981402018,160.45,0.00021649,2]
[391914470,1760981402516,240.68,0.00022633,2]
[391914471,1760981402984,320.9,0.00023617,2]
[391914472,1760981407678,151.76994319,0.00033731,30]
[391914473,1760981407787,250.0,0.00033731,30]
[391914474,1760981408477,250.0,0.00033731,30]
[391914475,1760981409129,250.0,0.00033731,30]
[391914476,1760981409749,151.0,0.00033731,30]
[391914477,1760981409798,250.0,0.00033731,30]
[391914478,1760981410433,151.0,0.00033731,30]
[391914479,1760981410473,414.0,0.00033731,30]
[391914480,1760981410974,250.0,0.00033731,30]
[391914481,1760981411583,151.0,0.00033731,30]
[391914482,1760981411661,250.0,0.00033731,30]
[391914483,1760981411692,151.0,0.00033731,30]
[391914484,1760981412261,151.0,0.00033731,30]
[391914485,1760981412332,250.0,0.00033731,30]
[391914486,1760981412367,156.587,0.00033731,30]
[391914487,1760981412406,429.318,0.00033731,30]
[391914488,1760981413048,151.0,0.00033731,30]
[391914489,1760981413095,250.0,0.00033731,30]
[391914490,1760981413135,445.202766,0.00033731,30]
[391914491,1760981413562,162.380719,0.00033731,30]
[391914492,1760981413594,151.0,0.00033731,30]
[391914493,1760981413629,250.0,0.00033731,30]
[391914494,1760981413734,461.67526834,0.00033731,30]
[391914495,1760981414232,168.3888056,0.00033731,30]
[391914496,1760981414295,250.0,0.00033731,30]
[391914497,1760981414418,478.75725327,0.00033731,30]
[391914498,1760981414872,174.61919141,0.00033731,30]
[391914499,1760981414938,250.0,0.00033731,30]
[391914500,1760981415101,496.47127164,0.00033731,30]
[391914501,1760981415575,181.08010149,0.00033731,30]
[391914502,1760981415637,250.0,0.00033731,30]
[391914503,1760981415749,514.84070869,0.00033731,30]
[391914504,1760981416178,187.78006525,0.00033731,30]
[391914505,1760981416319,250.0,0.00033731,30]
[391914506,1760981416860,194.72792766,0.00033731,30]
[391914507,1760981416959,250.0,0.00033731,30]
[391914508,1760981417162,500.0,0.00033731,30]
[391914509,1760981417346,533.88981491,0.00033731,30]
[391914510,1760981417501,201.93286099,0.00033731,30]
[391914511,1760981418006,553.64373807,0.00033731,30]
[391914512,1760981418229,209.40437684,0.00033731,30]
[391914513,1760981418317,500.0,0.00033731,30]
[391914514,1760981418665,574.12855637,0.00033731,30]
[391914515,1760981418865,217.15233878,0.00033731,30]
[391914516,1760981419005,500.0,0.00033731,30]
[391914517,1760981419338,595.37131296,0.00033731,30]
[391914518,1760981419530,225.18697532,0.00033731,30]
[391914519,1760981419638,500.0,0.00033731,30]
[391914520,1760981420001,617.40005154,0.00033731,30]
[391914521,1760981420348,500.0,0.00033731,30]
[391914522,1760981420674,233.51889341,0.00033731,30]
[391914523,1760981420713,640.24385345,0.00033731,30]
[391914524,1760981421323,242.15909246,0.00033731,30]
[391914525,1760981421582,500.0,0.00033731,30]
[391914526,1760981421896,663.93287602,0.00033731,30]
[391914527,1760981421969,251.11897888,0.00033731,30]
[391914528,1760981422530,688.49839244,0.00033731,30]
[391914529,1760981422724,500.0,0.00033731,30]
[391914530,1760981422803,260.4103811,0.00033731,30]
[391914531,1760981423519,500.0,0.00033731,30]
[391914532,1760981423738,713.97283296,0.00033731,30]
[391914533,1760981424056,500.0,0.00033731,30]
[391914534,1760981424446,713.97283296,0.00033731,30]
[391914535,1760981424723,500.0,0.00033731,30]
[391914536,1760981425393,500.0,0.00033731,30]
[391914537,1760981426048,500.0,0.00033731,30]
[391914538,1760981426701,500.0,0.00033731,30]
[391914581,1760981432073,-229.45478909,0.00024099,2]
[391914583,1760981432083,-300.0,0.00024099,2]
[391914585,1760981432093,-1950.44135748,0.000241,2]
[391914587,1760981432104,-256.04000004,0.000241,2]
[391914589,1760981432116,-8106.87670253,0.000241,2]
[391914591,1760981432125,-5633.04992106,0.00024141,2]
[391914593,1760981432134,-50646.70102281,0.00024142,2]
[391914595,1760981432143,-500.0,0.00024168,2]
[391914597,1760981432153,-500.0,0.00024168,2]
[391914600,1760981432162,-500.0,0.00024168,2]
[391914603,1760981432172,-1000.0,0.00024169,2]
[391914606,1760981432181,-793.50706892,0.00024169,2]
[391914609,1760981432191,-9087.78,0.00024195,10]
[391914612,1760981432201,-44927.93636385,0.00024205,2]
[391914615,1760981432211,-156.93201907,0.00024205,2]
[391914617,1760981432221,-500.0,0.00024205,2]
[391914619,1760981432230,-500.0,0.00024205,2]
[391914621,1760981432240,-247.32849485,0.00024205,2]
[391914623,1760981432249,-500.0,0.00024205,2]
[391914626,1760981432259,-160.55773839,0.00024205,2]
[391914627,1760981432268,-500.0,0.00024205,2]
[391914629,1760981432278,-500.0,0.00024205,2]
[391914631,1760981432287,-500.0,0.00024205,2]
[391914633,1760981432297,-300.53255293,0.00024205,2]
[391914635,1760981432306,-500.0,0.00024205,2]
[391914637,1760981432317,-12916.8282294,0.00024206,2]
[391914639,1760981432326,-302.1501839,0.00024269,2]
[391914641,1760981432335,-500.0,0.00024273,2]
[391914643,1760981432344,-1100.0,0.000245,5]
[391914645,1760981432353,-300.0,0.00024581,20]
[391914647,1760981432362,-300.0,0.00024581,20]
[391914649,1760981432371,-300.0,0.00024581,20]
[391914651,1760981432381,-300.0,0.00024581,20]
[391914653,1760981432390,-300.0,0.00024581,20]
[391914655,1760981432399,-300.0,0.00024581,20]
[391914657,1760981432408,-300.0,0.00024581,20]
[391914659,1760981432417,-300.0,0.00024581,20]
[391914661,1760981432426,-300.0,0.00024581,20]
[391914663,1760981432436,-300.0,0.00024581,20]
[391914665,1760981432445,-300.0,0.00024581,20]
[391914667,1760981432454,-300.0,0.00024581,20]
[391914669,1760981432464,-300.0,0.00024581,20]
[391914671,1760981432473,-300.0,0.00024581,20]
[391914672,1760981432482,-300.0,0.00024581,20]
[391914674,1760981432491,-401.13,0.00024601,2]
[391914676,1760981432500,-263.87300746,0.00024699,2]
[391914678,1760981432509,-1744.0516283,0.000248,4]
[391914680,1760981432519,-1000.0,0.00024821,2]
[391914682,1760981432528,-315.0,0.00024972,2]
[391914684,1760981432537,-500.0,0.00024973,2]
[391914686,1760981432547,-500.0,0.00024973,2]
[391914688,1760981432556,-10905.33,0.0002498,10]
[391914690,1760981432566,-35173.0244091,0.0002499,2]
[391914692,1760981432575,-3777.06410594,0.0002499,2]
[391914694,1760981432584,-89903.42863153,0.00025,5]
[391914696,1760981432593,-33857.82605224,0.00025,15]
[391914698,1760981432603,-1075.96245923,0.00025,2]
[391914700,1760981432613,-1518.68715026,0.00025,7]
[391914702,1760981432622,-1410.91358904,0.00025,2]
[391914704,1760981432631,-5296.36879856,0.00025,2]
[391914706,1760981432640,-500.0,0.00025,5]
[391914708,1760981432650,-17076.16,0.00025,7]
[391914711,1760981432660,-600.0,0.00025072,20]
[391914713,1760981432670,-500.0,0.00025274,5]
[391914715,1760981432680,-298.29122582,0.00025299,2]
[391914716,1760981432689,-1000.0,0.00025521,2]
[391914718,1760981432698,-500.0,0.00025548,5]
[391914720,1760981432708,-481.36,0.00025586,2]
[391914722,1760981432718,-500.0,0.00025822,5]
[391914724,1760981432728,-165.0,0.0002589,18]
[391914726,1760981432738,-332.70944418,0.00025899,2]
[391914728,1760981432747,-279.4999211,0.00025996,2]
[391914730,1760981432758,-1000.0,0.00025996,2]
[391914732,1760981432767,-1000.0,0.00025996,2]
[391914734,1760981432777,-1000.0,0.00025996,2]
[391914736,1760981432792,-1000.0,0.00025996,2]
[391914738,1760981432802,-1000.0,0.00025996,2]
[391914740,1760981432812,-1000.0,0.00025996,2]
[391914742,1760981432821,-1039.57200299,0.00025996,2]
[391914744,1760981432832,-1500.0,0.00026068,2]
[391914746,1760981432842,-500.0,0.00026096,5]
[391914748,1760981432852,-420.0,0.00026131,2]
[391914750,1760981432863,-405.0,0.00026437,7]
[391914752,1760981432873,-1000.00548465,0.00026444,4]
[391914754,1760981432883,-367.12766255,0.00026499,2]
[391914756,1760981432893,-561.58,0.0002657,2]
[391914759,1760981432904,-2000.0,0.00026616,2]
[391914760,1760981432914,-551.2031331,0.0002664,2]
[391914762,1760981432924,-182.474838,0.00026706,2]
[391914764,1760981432934,-15942.87375634,0.000268,7]
[391914768,1760981432955,-945.83119822,0.000268,7]
[391914806,1760981437899,-187.45504544,0.000268,7]
[391914807,1760981437910,-402.0,0.00026922,2]
[391914808,1760981437920,-402.0,0.00026955,2]
[391914809,1760981437931,-151.0,0.00026965,7]
[391914810,1760981437941,-402.0,0.00026967,2]
[391914811,1760981437951,-150.0,0.00026973,2]
[391914812,1760981437961,-391.31989326,0.00026977,2]
[391914813,1760981437972,-308.38250958,0.00026977,2]
[391914814,1760981437983,-555.08851724,0.00026977,2]
[391914815,1760981437992,-493.69499049,0.0002699,2]
[391914816,1760981438004,-300.96963527,0.0002699,2]
[391914817,1760981438016,-54417.73192207,0.0002699,2]
[391914818,1760981438025,-160.0,0.00026991,2]
[391914819,1760981438035,-402.0,0.00026999,2]
[391914820,1760981438045,-1002.51738977,0.00026999,10]
[391914822,1760981438055,-190.662627,0.00027,2]
[391914823,1760981438065,-163.0,0.00027,7]
[391914824,1760981438074,-186133.85155164,0.00027,2]
[391914825,1760981438086,-3564.6,0.00027,2]
[391914840,1760981440330,-3e-08,0.00027,2]
[391914841,1760981440341,-14294.273528,0.00027,2]
[391914842,1760981440360,-22455.6784205,0.00027,2]
[391914885,1760981443136,-7573.15,0.0002699,10]
[391914886,1760981443146,-217875.12327295,0.00027,2]
[391914908,1760981479231,150.0,0.00020621,2]
[391914909,1760981479500,150.0,0.00021603,2]
[391914910,1760981480336,152.25,0.00022585,2]
[391914911,1760981481038,202.99,0.00023567,2]
[391914912,1760981509667,3662.97000469,0.00024075,2]
[391914913,1760981509690,1094.94581538,0.00024075,2]
[391914914,1760981557123,150.0,0.00020665,2]
[391914915,1760981557535,150.0,0.00021649,2]
[391914916,1760981557969,150.0,0.00022633,2]
[391914917,1760981558631,169.64,0.00023618,2]
[391914918,1760981635145,150.0,0.00020633,2]
[391914919,1760981635573,150.0,0.00021616,2]
[391914920,1760981636023,150.0,0.00022598,2]
[391914921,1760981636467,150.0,0.00023581,2]
[391914922,1760981674108,369714.07,0.00033743,30]
[391914923,1760981711784,150.0,0.00020628,2]
[391914924,1760981712229,150.0,0.00021611,2]
[391914925,1760981712676,150.0,0.00022593,2]
[391914926,1760981712734,214.33360488,0.00033743,30]
[391914927,1760981713117,153.36,0.00023575,2]
[391914928,1760981716204,157.75103136,0.00033743,30]
[391914929,1760981717354,417.15472785,0.000301,120]
[391914930,1760981787828,150.0,0.00020626,2]
[391914931,1760981788260,150.0,0.00021608,2]
[391914932,1760981789192,150.0,0.0002259,2]
[391914933,1760981789640,150.0,0.00023572,2]
[391915008,1760981862864,150.0,0.00020622,2]
[391915009,1760981863291,150.0,0.00021604,2]
[391915010,1760981864196,150.0,0.00022586,2]
[391915011,1760981864341,150.0,0.00023568,2]
[391915012,1760981938585,150.0,0.00020742,2]
[391915013,1760981939015,150.0,0.0002173,2]
[391915014,1760981939430,150.0,0.00022717,2]
[391915015,1760981939854,150.0,0.00023705,2]
[391915016,1760982010371,150.0,0.00020762,2]
[391915017,1760982010821,150.0,0.00021751,2]
[391915018,1760982011508,1000.29999999,0.00033718,30]
[391915019,1760982011552,150.0,0.0002274,2]
[391915020,1760982011690,150.0,0.00023728,2]
[391915021,1760982080791,150.0,0.00020802,2]
[391915022,1760982081211,150.0,0.00021792,2]
[391915023,1760982081641,150.0,0.00022783,2]
[391915024,1760982082082,150.0,0.00023773,2]
[391915037,1760982130419,22568.9357,0.00033718,30]
[391915043,1760982153385,150.0,0.00020693,2]
[391915044,1760982153865,150.0,0.00021678,2]
[391915045,1760982154317,150.0,0.00022663,2]
[391915046,1760982154763,150.0,0.00023649,2]
[391915047,1760982176170,-500.0,0.00024141,2]
[391915048,1760982176200,-500.0,0.00024141,2]
[391915049,1760982176228,-199.62566651,0.00024141,2]
[391915050,1760982176254,-500.0,0.00024166,2]
[391915051,1760982222956,150.0,0.00020869,2]
[391915052,1760982223399,150.0,0.00021863,2]
[391915053,1760982223861,150.0,0.00022856,2]
[391915054,1760982340269,500.0,0.00024066,10]
[391915055,1760982342491,500.0,0.00024066,10]
[391915056,1760982344753,500.0,0.00024066,10]
[391915057,1760982347001,500.0,0.00024066,10]
[391915058,1760982349234,500.0,0.00024066,10]
[391915059,1760982351681,500.0,0.00024066,10]
[391915060,1760982353748,500.0,0.00024066,10]
[391915061,1760982355973,350.37433349,0.00024066,10]
[391915062,1760982365774,-149.62566651,0.00024066,10]
[391915063,1760982365798,-161.74423854,0.00024066,10]
[391915064,1760982368143,-173.7383547,0.00024066,10]
[391915065,1760982384707,-164.51740676,0.00024066,10]
[391915066,1760982384730,-176.83947363,0.00024066,10]
[391915067,1760982568529,193.47660628,0.00024075,2]
[391915068,1760982569286,-151.92934853,0.00024085,10]
[391915069,1760982591319,151.92934853,0.00024075,2]
[391915070,1760982607849,171.23,0.00024025,10]
[391915071,1760982628601,302.54622906,0.00023188,10]
[391915114,1760982632225,-505.8337446,0.00024204,2]
[391915116,1760982632235,-200.0,0.00024658,15]
[391915118,1760982632246,-229.56951649,0.00024741,2]